[Event "Galicia-ch U18 2021"]
[Site "Padron"]
[Date "2021.04.02"]
[Round "4.1"]
[White "Bringas Gomez, Artai"]
[Black "Rodriguez Ferreiros, Andres"]
[Result "1/2-1/2"]
[ECO "D00"]
[WhiteElo "2120"]
[BlackElo "2123"]
[Annotator "NA"]
[PlyCount "57"]
[EventDate "2021.04.02"]
[EventType "swiss"]
[EventCountry "ESP"]
[SourceTitle "playchess.com"]
[Source "ChessBase"]
[SourceQuality "1"]
[TimeControl "5400+30"]

1. d4 {[%emt 0:00:00]} d5 {[%emt 0:00:00]} 2. Bg5 {[%emt 0:00:00]} f6 {[%emt 0:01:33]} 3. Bh4 {[%emt 0:00:00]} c5 {[%emt 0:00:41]} 4. Nc3 {[%emt 0:02:46]} Bf5 {[%emt 0:04:12]} 5. e3 {[%emt 0:05:37]} cxd4 {[%emt 0:03:26]} 6. exd4 {[%emt 0:03:24]} e6 {[%emt 0:01:04]} 7. Bd3 {[%emt 0:00:41]} Ne7 {[%emt 0:01:16]} 8. g4 {[%emt 0:02:02]} Bxd3 {[%emt 0:01:52]} 9. Qxd3 {[%emt 0:00:07]} Nbc6 {[%emt 0:02:59]} 10. O-O-O {[%emt 0:05:26]} h5 {[%emt 0:07:08]} 11. gxh5 {[%emt 0:04:30]} Nf5 {[%emt 0:02:10]} 12. Bg3 {[%emt 0:00:45]} Rxh5 {[%emt 0:07:43]} 13. Qe2 {[%emt 0:01:53]} g6 {[%emt 0:06:02]} 14. Qxe6+ {[%emt 0:00:37]} Qe7 {[%emt 0:05:02]} 15. Qxe7+ {[%emt 0:04:31]} Ncxe7 {[%emt 0:04:55]} 16. Nf3 {[%emt 0:09:41]} Kf7 {[%emt 0:02:03]} 17. Ne2 {[%emt 0:03:22]} Bh6+ {[%emt 0:04:04]} 18. Kb1 {[%emt 0:08:48]} Re8 {[%emt 0:01:42]} 19. Nf4 {[%emt 0:09:30]} Nxg3 {[%emt 0:06:01]} 20. hxg3 {[%emt 0:00:41]} Rxh1 {[%emt 0:02:18]} 21. Rxh1 {[%emt 0:00:15]} Bxf4 {[%emt 0:00:53]} 22. gxf4 {[%emt 0:00:14]} Nf5 {[%emt 0:00:19]} 23. Kc1 {[%emt 0:05:10]} Re4 {[%emt 0:02:52]} 24. Rh7+ {[%emt 0:00:53]} Ke6 {[%emt 0:08:01]} 25. Kd2 {[%emt 0:08:04]} Rxf4 {[%emt 0:01:02]} 26. Ke2 {[%emt 0:00:37]} Nd6 {[%emt 0:01:52]} 27. c3 {[%emt 0:01:21]} g5 {[%emt 0:01:10]} 28. Ne1 {[%emt 0:01:43]} Re4+ {[%emt 0:05:17]} 29. Kf1 {[%emt 0:01:17]} 1/2-1/2

[Event "Galicia-ch U18 2021"]
[Site "Padron"]
[Date "2021.04.02"]
[Round "4.2"]
[White "Gonzalez Taboada, Lorenzo"]
[Black "Martinez Montes, Juan Manuel"]
[Result "1-0"]
[ECO "B92"]
[WhiteElo "1609"]
[BlackElo "1873"]
[Annotator "NA"]
[PlyCount "89"]
[EventDate "2021.04.02"]
[EventType "swiss"]
[EventCountry "ESP"]
[SourceTitle "playchess.com"]
[Source "ChessBase"]
[SourceQuality "1"]
[TimeControl "5400+30"]

1. e4 c5 2. Nf3 {[%emt 0:00:04]} d6 {[%emt 0:00:00]} 3. d4 {[%emt 0:01:23]} cxd4 {[%emt 0:00:00]} 4. Nxd4 {[%emt 0:00:02]} Nf6 {[%emt 0:00:00]} 5. Nc3 {[%emt 0:00:11]} a6 {[%emt 0:00:00]} 6. Be2 {[%emt 0:02:02]} e5 {[%emt 0:00:00]} 7. Nb3 {[%emt 0:00:29]} Be7 {[%emt 0:00:00]} 8. O-O {[%emt 0:00:15]} Be6 9. Be3 {[%emt 0:01:27]} O-O {[%emt 0:00:07]} 10. f4 {[%emt 0:06:19]} Nbd7 {[%emt 0:00:56]} 11. f5 {[%emt 0:00:33]} Bxb3 {[%emt 0:00:06]} 12. axb3 {[%emt 0:00:04]} Nb6 {[%emt 0:00:36]} 13. Bf3 {[%emt 0:01:46]} Rc8 {[%emt 0:00:23]} 14. Rc1 {[%emt 0:01:06]} Rc6 {[%emt 0:04:19]} 15. Kh1 {[%emt 0:03:24]} Nfd7 {[%emt 0:02:18]} 16. Nd5 {[%emt 0:02:45]} Bg5 {[%emt 0:01:18]} 17. Qe2 {[%emt 0:06:11]} Bxe3 {[%emt 0:01:02]} 18. Nxe3 {[%emt 0:01:41]} Qc7 {[%emt 0:04:19]} 19. g3 {[%emt 0:07:16]} a5 {[%emt 0:00:58]} 20. Ra1 {[%emt 0:02:13]} Ra8 {[%emt 0:00:19]} 21. Bg4 {[%emt 0:16:08]} Nf6 {[%emt 0:00:18]} 22. Bf3 {[%emt 0:02:13]} a4 {[%emt 0:02:07]} 23. bxa4 {[%emt 0:00:50]} Nc4 {[%emt 0:00:28]} 24. Nd5 {[%emt 0:02:49]} Nxd5 {[%emt 0:00:18]} 25. exd5 {[%emt 0:00:06]} Rca6 {[%emt 0:01:09]} 26. b3 {[%emt 0:00:23]} Nb6 {[%emt 0:00:30]} 27. f6 {[%emt 0:05:04]} g6 {[%emt 0:01:06]} 28. Be4 {[%emt 0:00:23]} Qc3 {[%emt 0:01:52]} 29. Rac1 {[%emt 0:02:07]} Qc8 {[%emt 0:06:03]} 30. Qe3 {[%emt 0:05:03]} Qd8 {[%emt 0:01:46]} 31. h4 {[%emt 0:03:43]} Nd7 {[%emt 0:00:45]} 32. Qg5 {[%emt 0:01:13]} Nc5 {[%emt 0:04:37]} 33. Bf5 {[%emt 0:04:24]} Qf8 {[%emt 0:02:29]} 34. Rf2 {[%emt 0:07:31]} Kh8 {[%emt 0:03:34]} 35. Bd3 {[%emt 0:05:20]} Nxd3 {[%emt 0:01:25]} 36. cxd3 {[%emt 0:00:00]} Rc8 {[%emt 0:00:10]} 37. Rxc8 {[%emt 0:00:23]} Qxc8 {[%emt 0:00:01]} 38. Qh6 {[%emt 0:02:48]} Qg8 {[%emt 0:00:05]} 39. Rc2 Ra8 40. Rc7 {[%emt 0:00:21]} b5 {[%emt 0:00:01]} 41. axb5 {[%emt 0:00:30]} g5 {[%emt 0:00:10]} 42. Qxg5 {[%emt 0:01:03]} Qxg5 {[%emt 0:01:11]} 43. hxg5 {[%emt 0:00:02]} h6 {[%emt 0:00:01]} 44. g6 {[%emt 0:00:37]} fxg6 {[%emt 0:00:08]} 45. b6 {[%emt 0:00:04]} 1-0

[Event "Galicia-ch U18 2021"]
[Site "Padron"]
[Date "2021.04.02"]
[Round "4.3"]
[White "Bastos Gonzalez, Gonzalo"]
[Black "Ferreno Sanmartin, Angel"]
[Result "0-1"]
[ECO "A37"]
[WhiteElo "1685"]
[BlackElo "2152"]
[Annotator "ChessBase"]
[PlyCount "88"]
[EventDate "2021.04.02"]
[EventType "swiss"]
[EventCountry "ESP"]
[SourceTitle "playchess.com"]
[Source "ChessBase"]
[SourceQuality "1"]
[TimeControl "5400+30"]

1. Nf3 {[%emt 0:00:00]} c5 {[%emt 0:00:00]} 2. c4 {[%emt 0:00:00]} Nc6 {[%emt 0:00:00]} 3. Nc3 {[%emt 0:00:00]} g6 {[%emt 0:00:00]} 4. g3 {[%emt 0:01:05]} Bg7 {[%emt 0:00:03]} 5. Bg2 {[%emt 0:00:10]} e5 {[%emt 0:00:58]} 6. O-O {[%emt 0:00:34]} Nge7 {[%emt 0:00:05]} 7. d3 {[%emt 0:00:51]} d6 {[%emt 0:00:25]} 8. Rb1 {[%emt 0:01:18]} O-O {[%emt 0:00:20]} 9. a3 {[%emt 0:01:04]} a5 {[%emt 0:00:11]} 10. Ne1 {[%emt 0:01:50]} Be6 {[%emt 0:00:21]} 11. Nc2 {[%emt 0:04:20]} d5 {[%emt 0:00:30]} 12. cxd5 {[%emt 0:00:30]} Nxd5 {[%emt 0:00:43]} 13. Nxd5 {[%emt 0:01:10]} Bxd5 {[%emt 0:00:06]} 14. Bxd5 {[%emt 0:02:04]} Qxd5 {[%emt 0:00:07]} 15. Ne3 {[%emt 0:00:33]} Qe6 {[%emt 0:02:42]} 16. Re1 {[%emt 0:14:41]} b5 {[%emt 0:13:56]} 17. a4 {[%emt 0:16:24]} Qa2 {[%emt 0:08:48]} 18. Bd2 {[%emt 0:03:45]} bxa4 {[%emt 0:07:13]} 19. Ra1 {[%emt 0:05:30]} Qxb2 {[%emt 0:03:03]} 20. Nc4 {[%emt 0:01:41]} Qb7 {[%emt 0:14:09]} 21. Rxa4 {[%emt 0:02:40]} Qc7 {[%emt 0:00:55]} 22. Qb3 {[%emt 0:05:16]} Rfb8 {[%emt 0:01:51]} 23. Qa3 {[%emt 0:06:42]} Rb5 {[%emt 0:00:51]} 24. Bc3 {[%emt 0:09:30]} Nd4 {[%emt 0:10:12]} 25. Rxa5 {[%emt 0:09:28]} Rbxa5 {[%emt 0:01:38]} 26. Bxa5 {[%emt 0:00:06]} Qa7 {[%emt 0:03:21]} 27. Qb2 {[%emt 0:01:09]} e4 {[%emt 0:01:13]} 28. Qb1 {[%emt 0:02:19]} Rb8 {[%emt 0:02:34]} 29. Bb6 {[%emt 0:00:35]} Qa4 {[%emt 0:02:16]} 30. Kg2 {[%emt 0:03:48]} exd3 {[%emt 0:01:30]} 31. Qxd3 {[%emt 0:00:27]} Qc6+ {[%emt 0:00:44]} 32. f3 {[%emt 0:00:40]} Rxb6 {[%emt 0:01:06]} 33. Nxb6 {[%emt 0:00:34]} Qxb6 {[%emt 0:00:04]} 34. Rb1 {[%emt 0:00:51]} Qc7 {[%emt 0:01:42]} 35. Qe4 {[%emt 0:00:58]} Qe5 {[%emt 0:02:21]} 36. Qa8+ {[%emt 0:01:18]} Bf8 {[%emt 0:00:13]} 37. e4 Qh5 {[%emt 0:03:41]} 38. g4 {[%emt 0:02:06]} Qg5 {[%emt 0:00:12]} 39. Rb8 {[%emt 0:01:36]} Ne6 {[%emt 0:00:33]} 40. Qa2 {[%emt 0:01:22]} Qf4 {[%emt 0:01:30]} 41. Rb3 {[%emt 0:00:50]} Bd6 {[%emt 0:01:38]} 42. Kf1 {[%emt 0:00:34]} Qxh2 {[%emt 0:01:55]} 43. Qxh2 {[%emt 0:00:34]} Bxh2 {[%emt 0:00:08]} 44. Ke2 {[%emt 0:00:11]} Nd4+ {[%emt 0:00:10]} 0-1

[Event "Galicia-ch U18 2021"]
[Site "Padron"]
[Date "2021.04.02"]
[Round "4.4"]
[White "Vazquez Gomez, Marcos"]
[Black "Buitron Ramil, David"]
[Result "0-1"]
[ECO "C00"]
[WhiteElo "1761"]
[BlackElo "1934"]
[Annotator "NA"]
[PlyCount "106"]
[EventDate "2021.04.02"]
[EventType "swiss"]
[EventCountry "ESP"]
[SourceTitle "playchess.com"]
[Source "ChessBase"]
[SourceQuality "1"]
[TimeControl "5400+30"]

1. e4 {[%emt 0:00:00]} e6 {[%emt 0:00:00]} 2. d3 {[%emt 0:00:33]} d5 {[%emt 0:00:00]} 3. Nd2 {[%emt 0:00:24]} Nf6 {[%emt 0:00:00]} 4. Ngf3 {[%emt 0:01:45]} Bc5 {[%emt 0:00:20]} 5. e5 {[%emt 0:03:23]} Nfd7 {[%emt 0:00:34]} 6. d4 {[%emt 0:01:03]} Be7 {[%emt 0:00:07]} 7. g3 {[%emt 0:02:26]} c5 {[%emt 0:00:11]} 8. c3 {[%emt 0:00:49]} Nc6 {[%emt 0:00:02]} 9. Bg2 {[%emt 0:01:30]} Qb6 {[%emt 0:01:12]} 10. Nb3 {[%emt 0:11:30]} cxd4 {[%emt 0:00:06]} 11. cxd4 {[%emt 0:00:46]} a5 {[%emt 0:00:04]} 12. Be3 {[%emt 0:12:24]} a4 {[%emt 0:05:35]} 13. Nbd2 {[%emt 0:00:39]} Qxb2 {[%emt 0:00:03]} 14. O-O {[%emt 0:00:45]} Qc3 {[%emt 0:00:14]} 15. Qe2 {[%emt 0:01:41]} Qa5 {[%emt 0:01:59]} 16. a3 {[%emt 0:06:47]} Qa6 {[%emt 0:00:40]} 17. Qd1 {[%emt 0:01:23]} O-O {[%emt 0:00:36]} 18. h4 {[%emt 0:00:55]} b5 {[%emt 0:04:35]} 19. Ng5 {[%emt 0:03:22]} h6 {[%emt 0:00:45]} 20. Qh5 {[%emt 0:04:08]} hxg5 {[%emt 0:02:17]} 21. hxg5 {[%emt 0:00:20]} g6 {[%emt 0:00:30]} 22. Qh6 {[%emt 0:01:06]} Re8 {[%emt 0:00:28]} 23. Kh2 {[%emt 0:05:02]} Bf8 {[%emt 0:00:21]} 24. Qh4 {[%emt 0:00:12]} Nb6 {[%emt 0:00:40]} 25. Rh1 {[%emt 0:01:50]} Nc4 {[%emt 0:01:12]} 26. Kg1 {[%emt 0:00:52]} Bg7 {[%emt 0:00:06]} 27. Qh7+ {[%emt 0:05:04]} Kf8 {[%emt 0:00:02]} 28. Nf3 {[%emt 0:01:29]} Nxe3 {[%emt 0:01:35]} 29. fxe3 {[%emt 0:00:13]} Qa5 {[%emt 0:00:46]} 30. Nh4 {[%emt 0:02:51]} Ne7 {[%emt 0:00:22]} 31. Rf1 {[%emt 0:04:47]} Qc3 {[%emt 0:01:35]} 32. Nxg6+ {[%emt 0:05:44]} Nxg6 {[%emt 0:00:06]} 33. Qxg6 {[%emt 0:01:01]} Qxe3+ {[%emt 0:00:03]} 34. Kh2 {[%emt 0:00:25]} Ra7 {[%emt 0:00:19]} 35. Rf6 {[%emt 0:02:12]} Qxd4 {[%emt 0:03:48]} 36. Rhf1 {[%emt 0:06:25]} Ree7 {[%emt 0:00:03]} 37. Bf3 {[%emt 0:01:25]} Bxf6 {[%emt 0:01:30]} 38. Qxf6 {[%emt 0:00:15]} Ke8 {[%emt 0:00:09]} 39. Bh5 {[%emt 0:01:58]} Qb2+ {[%emt 0:02:08]} 40. Kh3 {[%emt 0:00:45]} Qxa3 {[%emt 0:01:12]} 41. Qh8+ {[%emt 0:01:20]} Kd7 {[%emt 0:00:01]} 42. Bxf7 {[%emt 0:00:23]} Bb7 {[%emt 0:00:57]} 43. g6 {[%emt 0:01:06]} Qd3 {[%emt 0:00:33]} 44. Rf6 {[%emt 0:04:10]} Ra8 {[%emt 0:01:33]} 45. g7 {[%emt 0:00:32]} Qb1 {[%emt 0:01:30]} 46. Kg4 {[%emt 0:04:48]} Qe4+ {[%emt 0:00:03]} 47. Kg5 {[%emt 0:00:21]} Qxe5+ {[%emt 0:00:15]} 48. Kg6 {[%emt 0:00:31]} Qxg3+ {[%emt 0:00:03]} 49. Kh7 {[%emt 0:00:27]} Qh4+ {[%emt 0:01:11]} 50. Rh6 {[%emt 0:00:08]} Rxh8+ {[%emt 0:00:19]} 51. gxh8=Q {[%emt 0:00:14]} Rxf7+ {[%emt 0:00:08]} 52. Kg6 {[%emt 0:00:22]} Qf4 {[%emt 0:00:38]} 53. Rh5 {[%emt 0:01:18]} d4 0-1

[Event "Galicia-ch U18 2021"]
[Site "Padron"]
[Date "2021.04.02"]
[Round "4.5"]
[White "Reza Salgado, Marcos"]
[Black "Perez Dapoza, Cesar"]
[Result "0-1"]
[ECO "D05"]
[WhiteElo "1660"]
[BlackElo "1885"]
[Annotator "NA"]
[PlyCount "66"]
[EventDate "2021.04.02"]
[EventType "swiss"]
[EventCountry "ESP"]
[SourceTitle "playchess.com"]
[Source "ChessBase"]
[SourceQuality "1"]
[TimeControl "5400+30"]

1. Nf3 {[%emt 0:00:00]} d5 {[%emt 0:00:00]} 2. d4 {[%emt 0:00:15]} e6 {[%emt 0:00:22]} 3. e3 {[%emt 0:01:14]} Nf6 {[%emt 0:03:38]} 4. Bd3 {[%emt 0:01:13]} Nbd7 {[%emt 0:01:43]} 5. Nbd2 {[%emt 0:01:35]} b6 {[%emt 0:02:14]} 6. b3 {[%emt 0:02:46]} Bb7 {[%emt 0:00:35]} 7. Bb2 {[%emt 0:00:06]} Ne4 {[%emt 0:05:55]} 8. c4 {[%emt 0:02:29]} Bd6 {[%emt 0:08:25]} 9. O-O {[%emt 0:09:55]} O-O {[%emt 0:03:09]} 10. Qe2 {[%emt 0:02:03]} f5 {[%emt 0:10:26]} 11. Ne5 {[%emt 0:07:54]} Nxd2 {[%emt 0:09:54]} 12. Qxd2 {[%emt 0:04:12]} Nxe5 {[%emt 0:04:23]} 13. dxe5 {[%emt 0:00:24]} Bc5 {[%emt 0:00:49]} 14. Rfd1 {[%emt 0:06:16]} Qg5 {[%emt 0:08:02]} 15. g3 {[%emt 0:02:25]} Rad8 {[%emt 0:05:37]} 16. f4 {[%emt 0:03:50]} Qh6 {[%emt 0:00:12]} 17. Qe1 {[%emt 0:04:04]} Qh5 {[%emt 0:13:55]} 18. Bd4 {[%emt 0:06:25]} dxc4 {[%emt 0:01:56]} 19. Be2 {[%emt 0:00:20]} Qe8 {[%emt 0:01:12]} 20. Bxc5 {[%emt 0:14:10]} Qc6 {[%emt 0:01:45]} 21. Qf1 {[%emt 0:01:09]} Qh1+ {[%emt 0:01:37]} 22. Kf2 {[%emt 0:00:04]} Qxh2+ {[%emt 0:00:14]} 23. Ke1 {[%emt 0:00:01]} Qxg3+ {[%emt 0:01:39]} 24. Qf2 {[%emt 0:00:08]} Qxf2+ {[%emt 0:00:10]} 25. Kxf2 {[%emt 0:00:01]} bxc5 {[%emt 0:00:10]} 26. Bxc4 {[%emt 0:00:58]} Kf7 {[%emt 0:00:01]} 27. Rac1 {[%emt 0:01:44]} Be4 {[%emt 0:01:31]} 28. Rxd8 {[%emt 0:02:00]} Rxd8 {[%emt 0:00:02]} 29. Bf1 {[%emt 0:00:07]} Rd2+ {[%emt 0:00:15]} 30. Kg3 {[%emt 0:00:00]} Rc2 {[%emt 0:00:23]} 31. Rd1 {[%emt 0:00:16]} Ke7 {[%emt 0:00:01]} 32. Bb5 {[%emt 0:00:16]} Bd5 {[%emt 0:01:58]} 33. a4 {[%emt 0:00:25]} Rc3 0-1

[Event "Galicia-ch U18 2021"]
[Site "Padron"]
[Date "2021.04.02"]
[Round "4.6"]
[White "Alvarez Pampillon, Antonio"]
[Black "Reza Salgado, Miguel"]
[Result "1-0"]
[ECO "A14"]
[WhiteElo "1860"]
[BlackElo "1718"]
[Annotator "NA"]
[PlyCount "81"]
[EventDate "2021.04.02"]
[EventType "swiss"]
[EventCountry "ESP"]
[SourceTitle "playchess.com"]
[Source "ChessBase"]
[SourceQuality "1"]
[TimeControl "5400+30"]

1. g3 {[%emt 0:00:00]} Nf6 {[%emt 0:00:16]} 2. Bg2 {[%emt 0:00:00]} d5 {[%emt 0:00:21]} 3. c4 {[%emt 0:00:00]} e6 {[%emt 0:00:48]} 4. Nf3 {[%emt 0:00:00]} Be7 {[%emt 0:01:22]} 5. O-O {[%emt 0:00:10]} O-O {[%emt 0:00:15]} 6. Nc3 {[%emt 0:00:38]} d4 {[%emt 0:04:53]} 7. Nb1 {[%emt 0:00:05]} c5 {[%emt 0:00:24]} 8. d3 {[%emt 0:00:05]} Nc6 {[%emt 0:00:31]} 9. Na3 {[%emt 0:00:14]} a6 {[%emt 0:00:32]} 10. Nc2 {[%emt 0:00:34]} e5 {[%emt 0:01:05]} 11. Rb1 {[%emt 0:00:17]} Qc7 {[%emt 0:01:21]} 12. a3 {[%emt 0:00:11]} Rb8 {[%emt 0:06:07]} 13. b4 {[%emt 0:09:09]} cxb4 {[%emt 0:00:57]} 14. Nxb4 {[%emt 0:01:48]} Bxb4 {[%emt 0:17:51]} 15. axb4 {[%emt 0:00:03]} b5 {[%emt 0:00:24]} 16. e3 {[%emt 0:09:21]} bxc4 {[%emt 0:01:10]} 17. exd4 {[%emt 0:01:02]} Bf5 {[%emt 0:01:48]} 18. Nxe5 {[%emt 0:06:05]} Nxd4 {[%emt 0:02:17]} 19. Nxc4 {[%emt 0:04:30]} Ne6 {[%emt 0:03:24]} 20. Bb2 {[%emt 0:17:39]} Rxb4 {[%emt 0:03:40]} 21. Ne3 {[%emt 0:12:37]} Rfb8 {[%emt 0:14:13]} 22. Rc1 {[%emt 0:01:35]} Qd8 {[%emt 0:09:22]} 23. Bxf6 {[%emt 0:01:02]} Qxf6 {[%emt 0:06:17]} 24. Nd5 {[%emt 0:00:02]} Qd8 {[%emt 0:00:26]} 25. Nxb4 {[%emt 0:01:13]} Rxb4 {[%emt 0:00:09]} 26. Rc4 {[%emt 0:03:01]} Rb8 {[%emt 0:03:18]} 27. Be4 {[%emt 0:08:10]} Bh3 {[%emt 0:00:28]} 28. Bg2 {[%emt 0:08:39]} Bf5 {[%emt 0:00:46]} 29. d4 {[%emt 0:00:35]} h6 {[%emt 0:02:11]} 30. d5 {[%emt 0:00:40]} Nc7 {[%emt 0:00:28]} 31. Qf3 {[%emt 0:06:53]} Qd7 {[%emt 0:01:17]} 32. Rxc7 {[%emt 0:00:26]} Qxc7 {[%emt 0:00:18]} 33. Qxf5 {[%emt 0:00:02]} Rd8 {[%emt 0:00:47]} 34. Qb1 {[%emt 0:01:58]} a5 {[%emt 0:00:15]} 35. Rc1 {[%emt 0:00:16]} Qd6 {[%emt 0:00:22]} 36. Rc6 {[%emt 0:00:59]} Qa3 {[%emt 0:00:26]} 37. d6 {[%emt 0:01:13]} a4 {[%emt 0:01:09]} 38. d7 {[%emt 0:00:35]} Qe7 {[%emt 0:00:30]} 39. Bh3 {[%emt 0:00:52]} a3 {[%emt 0:00:24]} 40. Rc8 {[%emt 0:00:30]} g6 {[%emt 0:00:25]} 41. Qb8 {[%emt 0:04:28]} 1-0

[Event "Galicia-ch U18 2021"]
[Site "Padron"]
[Date "2021.04.03"]
[Round "5.2"]
[White "Buitron Ramil, David"]
[Black "Bringas Gomez, Artai"]
[Result "1-0"]
[ECO "B07"]
[WhiteElo "1934"]
[BlackElo "2120"]
[Annotator "NA"]
[PlyCount "103"]
[EventDate "2021.04.02"]
[EventType "swiss"]
[EventCountry "ESP"]
[SourceTitle "playchess.com"]
[Source "ChessBase"]
[SourceQuality "1"]
[TimeControl "5400+30"]

1. e4 {[%emt 0:07:14]} d6 {[%emt 0:00:00]} 2. d4 {[%emt 0:00:06]} Nf6 {[%emt 0:00:00]} 3. Nc3 {[%emt 0:00:05]} e5 {[%emt 0:00:01]} 4. Nge2 {[%emt 0:00:24]} Nc6 {[%emt 0:00:24]} 5. f3 {[%emt 0:00:27]} g6 {[%emt 0:03:28]} 6. Be3 {[%emt 0:00:15]} Bg7 {[%emt 0:00:06]} 7. Qd2 {[%emt 0:00:35]} d5 {[%emt 0:10:57]} 8. exd5 {[%emt 0:05:55]} Nxd5 {[%emt 0:00:45]} 9. Nxd5 {[%emt 0:02:09]} Qxd5 {[%emt 0:00:10]} 10. Nc3 {[%emt 0:00:04]} Qd8 {[%emt 0:11:08]} 11. d5 {[%emt 0:01:00]} Nd4 {[%emt 0:01:16]} 12. O-O-O {[%emt 0:02:31]} Nf5 {[%emt 0:01:37]} 13. Bb5+ {[%emt 0:03:50]} Bd7 {[%emt 0:01:03]} 14. Bg5 {[%emt 0:00:03]} f6 {[%emt 0:00:52]} 15. g4 {[%emt 0:00:56]} Nd4 {[%emt 0:04:05]} 16. Bxd7+ {[%emt 0:01:15]} Qxd7 {[%emt 0:04:19]} 17. Be3 {[%emt 0:00:07]} O-O {[%emt 0:09:12]} 18. Bxd4 {[%emt 0:00:28]} exd4 {[%emt 0:00:07]} 19. Qxd4 {[%emt 0:00:09]} f5 {[%emt 0:01:21]} 20. Qc4 {[%emt 0:00:19]} b5 {[%emt 0:07:42]} 21. Nxb5 {[%emt 0:09:20]} Kh8 {[%emt 0:03:22]} 22. Qc6 {[%emt 0:01:22]} Qe7 {[%emt 0:02:13]} 23. Kb1 {[%emt 0:15:14]} Rab8 {[%emt 0:01:00]} 24. c3 {[%emt 0:00:54]} Qe2 {[%emt 0:06:10]} 25. a4 {[%emt 0:00:21]} fxg4 {[%emt 0:02:45]} 26. Qxc7 {[%emt 0:10:53]} a6 {[%emt 0:06:08]} 27. Rhe1 {[%emt 0:00:31]} Qxf3 {[%emt 0:02:47]} 28. d6 {[%emt 0:03:20]} axb5 {[%emt 0:01:09]} 29. d7 {[%emt 0:00:20]} Rbd8 {[%emt 0:03:52]} 30. Rd2 {[%emt 0:01:52]} Qf5+ {[%emt 0:00:36]} 31. Ka1 {[%emt 0:00:21]} Bf6 {[%emt 0:06:40]} 32. a5 {[%emt 0:02:07]} b4 {[%emt 0:00:25]} 33. cxb4 {[%emt 0:00:55]} Qb5 {[%emt 0:00:06]} 34. Qc5 {[%emt 0:00:43]} Qa4+ {[%emt 0:00:34]} 35. Kb1 {[%emt 0:00:08]} Kg7 {[%emt 0:00:04]} 36. Re3 {[%emt 0:05:37]} Bh4 {[%emt 0:01:23]} 37. Qd4+ {[%emt 0:01:45]} Bf6 {[%emt 0:01:38]} 38. Qxg4 {[%emt 0:04:07]} Bg5 {[%emt 0:02:23]} 39. Qd4+ {[%emt 0:00:35]} Bf6 {[%emt 0:00:06]} 40. Qc4 {[%emt 0:02:48]} Rxd7 {[%emt 0:01:41]} 41. Ra3 {[%emt 0:00:13]} Rxd2 {[%emt 0:00:10]} 42. Rxa4 {[%emt 0:00:02]} Rxb2+ {[%emt 0:00:16]} 43. Kc1 {[%emt 0:00:07]} Re8 {[%emt 0:00:36]} 44. Kd1 {[%emt 0:01:49]} Rd8+ {[%emt 0:00:24]} 45. Ke1 {[%emt 0:00:47]} Re8+ {[%emt 0:01:21]} 46. Kf1 {[%emt 0:00:09]} Rd8 {[%emt 0:01:21]} 47. Ra1 {[%emt 0:01:31]} Rdd2 {[%emt 0:01:08]} 48. Qc7+ {[%emt 0:01:56]} Kh6 {[%emt 0:01:30]} 49. Qf4+ {[%emt 0:01:13]} Bg5 {[%emt 0:00:57]} 50. Qf8+ {[%emt 0:00:03]} Kh5 {[%emt 0:00:04]} 51. a6 {[%emt 0:00:11]} Rxb4 {[%emt 0:02:01]} 52. Qxb4 {[%emt 0:00:34]} 1-0

[Event "Galicia-ch U18 2021"]
[Site "Padron"]
[Date "2021.04.03"]
[Round "5.4"]
[White "Perez Dapoza, Cesar"]
[Black "Alvarez Pampillon, Antonio"]
[Result "1-0"]
[ECO "A40"]
[WhiteElo "1885"]
[BlackElo "1860"]
[Annotator "NA"]
[PlyCount "109"]
[EventDate "2021.04.02"]
[EventType "swiss"]
[EventCountry "ESP"]
[SourceTitle "playchess.com"]
[Source "ChessBase"]
[SourceQuality "1"]
[TimeControl "5400+30"]

1. d4 {[%emt 0:00:00]} g6 {[%emt 0:00:00]} 2. e4 {[%emt 0:00:09]} c5 {[%emt 0:00:00]} 3. d5 {[%emt 0:02:27]} d6 {[%emt 0:00:00]} 4. Bd2 {[%emt 0:01:19]} Bg7 {[%emt 0:00:01]} 5. Bc3 {[%emt 0:01:06]} Nf6 {[%emt 0:00:17]} 6. Nf3 {[%emt 0:02:44]} O-O {[%emt 0:01:07]} 7. Nbd2 {[%emt 0:05:23]} Bg4 {[%emt 0:00:28]} 8. Bd3 {[%emt 0:04:16]} Nbd7 {[%emt 0:03:01]} 9. h3 {[%emt 0:06:31]} Bxf3 {[%emt 0:00:17]} 10. Qxf3 {[%emt 0:00:02]} Rb8 {[%emt 0:02:19]} 11. a4 {[%emt 0:00:16]} e6 {[%emt 0:10:37]} 12. O-O {[%emt 0:12:09]} Ne8 {[%emt 0:11:48]} 13. Bxg7 {[%emt 0:02:33]} Nxg7 {[%emt 0:00:09]} 14. Nc4 {[%emt 0:03:44]} Qe7 {[%emt 0:00:25]} 15. dxe6 {[%emt 0:04:01]} fxe6 {[%emt 0:01:17]} 16. Qg3 {[%emt 0:00:01]} d5 {[%emt 0:01:50]} 17. exd5 {[%emt 0:03:21]} exd5 {[%emt 0:00:02]} 18. Rae1 {[%emt 0:01:43]} Qf6 {[%emt 0:23:02]} 19. Ne3 {[%emt 0:08:15]} Qe5 {[%emt 0:06:42]} 20. Qxe5 {[%emt 0:05:18]} Nxe5 {[%emt 0:00:02]} 21. Nxd5 {[%emt 0:00:01]} Nxd3 {[%emt 0:00:01]} 22. cxd3 {[%emt 0:00:01]} Rbd8 {[%emt 0:00:40]} 23. Re5 {[%emt 0:00:56]} Rd6 {[%emt 0:00:01]} 24. Rfe1 {[%emt 0:00:47]} Rfd8 {[%emt 0:00:21]} 25. Nf4 {[%emt 0:01:14]} Rd4 {[%emt 0:00:02]} 26. g3 {[%emt 0:00:52]} b6 {[%emt 0:04:44]} 27. Re7 {[%emt 0:00:47]} Ra8 {[%emt 0:03:31]} 28. Rxg7+ {[%emt 0:02:35]} Kxg7 {[%emt 0:00:02]} 29. Ne6+ {[%emt 0:00:07]} Kf6 {[%emt 0:00:11]} 30. Nxd4 {[%emt 0:00:05]} cxd4 {[%emt 0:00:01]} 31. Re4 {[%emt 0:00:27]} Rc8 {[%emt 0:08:41]} 32. Rxd4 {[%emt 0:00:31]} Ke6 {[%emt 0:00:01]} 33. Re4+ {[%emt 0:03:28]} Kd6 {[%emt 0:00:00]} 34. Rd4+ {[%emt 0:01:31]} Ke6 {[%emt 0:00:28]} 35. Rc4 {[%emt 0:00:59]} Rxc4 {[%emt 0:18:45]} 36. dxc4 {[%emt 0:00:09]} Ke5 {[%emt 0:00:01]} 37. f4+ {[%emt 0:01:22]} Kd4 {[%emt 0:00:01]} 38. b3 {[%emt 0:00:38]} a5 {[%emt 0:00:09]} 39. Kf2 {[%emt 0:02:25]} Ke4 {[%emt 0:00:09]} 40. Ke2 {[%emt 0:03:51]} h5 {[%emt 0:08:01]} 41. h4 {[%emt 0:00:02]} Kd4 {[%emt 0:00:34]} 42. Kf3 {[%emt 0:00:49]} Kc3 {[%emt 0:00:16]} 43. g4 {[%emt 0:00:07]} hxg4+ {[%emt 0:00:19]} 44. Kxg4 {[%emt 0:00:36]} Kxb3 {[%emt 0:00:10]} 45. f5 {[%emt 0:00:19]} gxf5+ {[%emt 0:00:07]} 46. Kxf5 {[%emt 0:00:02]} Kxa4 {[%emt 0:01:17]} 47. h5 {[%emt 0:00:07]} Kb4 {[%emt 0:00:06]} 48. h6 {[%emt 0:00:07]} Kxc4 {[%emt 0:00:19]} 49. h7 {[%emt 0:00:07]} a4 {[%emt 0:01:17]} 50. h8=Q {[%emt 0:00:08]} a3 {[%emt 0:00:20]} 51. Qa1 {[%emt 0:00:27]} Kb3 {[%emt 0:00:11]} 52. Ke4 {[%emt 0:00:12]} b5 {[%emt 0:00:13]} 53. Kd3 {[%emt 0:00:13]} a2 {[%emt 0:01:28]} 54. Qc3+ {[%emt 0:00:05]} Ka4 {[%emt 0:00:05]} 55. Qb2 {[%emt 0:00:06]} 1-0